Workbook

Sheet 1.7.19 GSSS 15z
B1: jktLFkku ljdkj
B2: dkfeZd ¼[k&1½ foHkkx
B3: fu;rdkyhu osru o`f} izek.k i= ¼dk;kZy;%& jkmekfo 15tSM] Jhxaxkuxj½
B4: Schedule-1 | C4: Part `B` | D4: Rule No. 5(vi) and (vii) | I4: Pay Matrix of State Government Servants
B5: bl foHkkx dh vkKk | C5: ua-,Q15¼1½,QMh@:Yl@2017 | E5: laa[;k i- | F5: t;iqj] | G5: fnukad | H5: 2017-12-30 | I5: ds vuqlj.k esa
B7: 1 izekf.kr fd;k tkrk gS fd fuEufyf[kr jkT; deZpkjh us [kkuk la[;k 6 esa cryk, x, fu;e ls fu/kkZfjr fu;rdkfyd osruo`f} vftZr dj yh gSa jkT; deZpkjh us [kkuk la[;k 5 dh rkjh[k ls fufnZ"V in ij u;s osrueku 2017 ds fu;ekuqlkj vof/k esa dk;Z fd;k gSA mDr vof/k dh x.kuk nqjkpj.k vkfn ds dkj.k fuyEcu dh vof/k] osru vodk'k] vuqifLFkfr dh vof/k o in dks LFkkukiUu :i ls /kkj.k djus dh fLFkfr esas lHkh izdkj ds vodk'kksa dh vof/k ?kVk dj dh xbZ gSA
A9: Ø-la- | B9: deZpkjh dk uke e; in | D9: laLFkk;h ;k LFkkukiUUk | E9: is&eSfVªDl ysoy | G9: orZeku osru | H9: rkjh[k ftllasa orZeku osru izkIr fd;k tk jgk gS | I9: orZeku osru o`f} dh rkjh[k | J9: le lkef;d osru o`f) | K9: 0.03 | L9: Hkkoh osru | M9: nqjkpj.k ds fuyEcu vkSj ,slh vU; vuqifLFkfr ftldh x.kuk o`f} ds fy, ugha gksrh | O9: fcuk osru vkSj LFkkukuUu inkf/kdkjh;kss ds ekeyksa ds vU; lHkh izdkj ds vodk'k
J10: 0.03 | M10: rkjh[k ls | N10: rkjh[k rd | O10: rkjh[k ls | P10: rkjh[k rd
B11: 1 | D11: 2 | E11: 3 | G11: 4 | H11: 5 | I11: 6 | J11: 7 | K11: 7 | L11: 8 | M11: 9 | N11: 10 | O11: 11 | P11: 12
A12: 1 | B12: Jh ujsUnz dqekj foukspk | C12: O;k[;krk | D12: LFkk;h | E12: PB(2)- (9300-34800) (5400) | F12: Leval-13 | G12: 73400 | H12: 01&07&2018 | I12: 01&07&2019 | J12: =ROUND(K12,-2) -> 2200 | K12: =G12*3/100 -> 2202 | L12: =G12+J12 -> 75600 | M12: =L12-N12 -> 70200 | N12: 5400
A13: 2 | B13: Jherh lquhrk jkuh | C13: O;k[;krk | D13: LFkk;h | E13: PB(2)- (9300-34800) (5400) | F13: Leval-13 | G13: 71300 | H13: 01&07&2018 | I13: 01&07&2019 | J13: =ROUND(K13,-2) -> 2100 | K13: 2139 | L13: =G13+J13 -> 73400 | M13: =L13-N13 -> 68000 | N13: 5400
A14: 3 | B14: Jh lqjsUnz flag xzksoj | C14: O;k[;krk | D14: LFkk;h | E14: PB(2)- (9300-34800) (5400) | F14: Leval-12 | G14: 67000 | H14: 01&07&2018 | I14: 01&07&2019 | J14: =ROUND(K14,-2) -> 2000 | K14: 2010 | L14: =G14+J14 -> 69000 | M14: =L14-N14 -> 64200 | N14: 4800
A15: 4 | B15: Jherh eUtw ukxiky | C15: o-v- vaxzsth | D15: LFkk;h | E15: PB(2)- (9300-34800) (5400) | F15: Leval-11 | G15: 49300 | H15: 01&07&2018 | I15: 01&07&2019 | J15: 1500 | K15: 1479 | L15: =G15+J15 -> 50800 | M15: 45400 | N15: 5400
A16: 5 | B16: Jherh dkS'kY;k | C16: o-v- fgUnh | D16: LFkk;h | E16: PB(2)- (9300-34800) (5400) | F16: Leval-11 | G16: 40100 | H16: 01&07&2018 | I16: 01&07&2019 | J16: 1200 | K16: =G16*3/100 -> 1203 | L16: =G16+J16 -> 41300 | M16: =L16-N16 -> 36500 | N16: 4800
A17: 6 | B17: Jh jkedqekj | C17: o-v- xf.kr | D17: LFkk;h | E17: PB(2)- (9300-34800) (5400) | F17: Leval-12 | G17: 59500 | H17: 01&07&2018 | I17: 01&07&2019 | J17: 1800 | K17: 1785 | L17: 61300 | M17: 56500 | N17: 4800
A18: 7 | B18: Jherh vfrek JhokLro | C18: o-v- foKku | D18: LFkk;h | E18: PB(2)- (9300-34800) (5400) | F18: Leval-12 | G18: 59500 | H18: 01&07&2018 | I18: 01&07&2019 | J18: 1800 | K18: 1785 | L18: 61300 | M18: 56500 | N18: 4800
A19: 8 | B19: Jh euftUnz flag | C19: v- ysoy&kk | D19: LFkk;h | E19: PB(2)- (9300-34800) (5400) | F19: Leval-12 | G19: 57800 | H19: 01&07&2018 | I19: 01&07&2019 | J19: 1700 | K19: =G19*3/100 -> 1734 | L19: =G19+J19 -> 59500 | M19: =L19-N19 -> 54700 | N19: 4800
A20: 9 | B20: Jh egkohj izlkn vjksM+k | C20: v- ysoy&kk | D20: LFkk;h | E20: PB(2)- (9300-34800) (5400) | F20: Leval-12 | G20: 59500 | H20: 01&07&2018 | I20: 01&07&2019 | J20: 1800 | K20: 1785 | L20: =G20+J20 -> 61300 | M20: =L20-N20 -> 56500 | N20: 4800
A21: 10 | B21: Jh nsosUnz dqekj lqFkkj | C21: v- ysoy&kk | D21: LFkk;h | E21: PB(2)- (9300-34800) (5400) | F21: Leval-11 | G21: 49300 | H21: 01&07&2018 | I21: 01&07&2019 | J21: 1500 | K21: =G21*3/100 -> 1479 | L21: =G21+J21 -> 50800 | M21: =L21-N21 -> 45400 | N21: 5400
A22: 11 | B22: Jherh js[kk jkuh | C22: v- ysoy&k | D22: LFkk;h | E22: PB(2)- (9300-34800) (5400) | F22: Leval-13 | G22: 61500 | H22: 23&12&2018 | I22: 01&07&2019 | J22: 1800 | K22: =G22*3/100 -> 1845 | L22: 63300 | M22: 57900 | N22: 5400
A23: 12 | B23: Jherh lq"kek jkuh | C23: v- ysoy&k | D23: LFkk;h | E23: PB(2)- (9300-34800) (5400) | F23: Leval-12 | G23: 56100 | H23: 01&07&2018 | I23: 01&07&2019 | J23: 1700 | K23: =G23*3/100 -> 1683 | L23: =G23+J23 -> 57800 | M23: =L23-N23 -> 53000 | N23: 4800
A24: 13 | B24: Jh iou dqekj xksnkjk | C24: 'kk-f'k- | D24: LFkk;h | E24: PB(2)- (9300-34800) (5400) | F24: Leval-12 | G24: 59500 | H24: 01&07&2018 | I24: 01&07&2019 | J24: 1800 | K24: =G24*3/100 -> 1785 | L24: =G24+J24 -> 61300 | M24: =L24-N24 -> 56500 | N24: 4800
A25: 14 | B25: Jh lqfer fxjh | C25: ofj"B lgk;d | D25: LFkk;h | E25: PB(2)- (9300-34800) (5400) | F25: Leval-08 | G25: 34300 | H25: 01&07&2018 | I25: 01&07&2019 | J25: 1000 | K25: 1029 | L25: =G25+J25 -> 35300 | M25: =L25-N25 -> 32500 | N25: 2800
A26: 15 | B26: Jh dqynhi dqekj | C26: dfu"B lgk;d | D26: LFkk;h | E26: PB(2)- (9300-34800) (5400) | F26: Leval-05 | G26: 21400 | H26: 01&07&2018 | I26: 01&07&2019 | J26: 600 | K26: =G26*3/100 -> 642 | L26: =G26+J26 -> 22000 | M26: =L26-N26 -> 20100 | N26: 1900
A27: 16 | B27: Jherh y{eh nsoh | C27: p-Js-d- | D27: LFkk;h | E27: PB(2)- (9300-34800) (5400) | F27: Leval-03 | G27: 30200 | H27: 01&07&2018 | I27: 01&07&2019 | J27: 900 | K27: =G27*3/100 -> 906 | L27: =G27+J27 -> 31100 | M27: =L27-N27 -> 29200 | N27: 1900
A28: 17 | D28: LFkk;h | E28: PB(2)- (9300-34800) (5400) | F28: Leval-03 | G28: 0 | H28: 01&07&2018 | I28: 01&07&2019 | J28: 0 | K28: =G28*3/100 -> 0 | L28: =G28+J28 -> 0 | M28: =L28-N28 -> -1750 | N28: 1750
B30: izekf.kr fd;k tkrk gS fd jktLFkku lsok fu;e 31ds vuqlkj mi;qZDr vodk'k dh x.kuk ml in ds le;eku esa osru o`f} ds fy, ekU; gksrh gS ftl ij mi;qZDr jkT; deZpkjh vodk'k tkrs le; LFkkukiUu fLFkfr esa dk;Z dj jgk Fkk vkSj og vodk'k ij ugha tkrk rks aLFkkukiUu fLFkfr esa dk;Z djrk jgrkA
B32: Øekad %& jkmekfo@130 | I32: fnukad | J32: 2019-07-01
B33: uksV%& 1 dkj.k la[;k ¼1½ ;k ¼2½ izR;sd uke ds vkxs fy[kh tkuh pkfg,A ftl izzdj.k esa dkj.k la[;k ¼2½ Hkkx gksrk gS og Li"Vhdj.k Kkiu layXu djuk pkfg,A
B34: la[;k%& ua-,Q15¼1½,QMh@:Yl@2017 t;iqj fnukad%& 30-10-2017
B35: 2 vuqHkkxkf/kdkjh] dkfeZd ¼x½ foHkkx 'kklu lfpoky; dks vfrfjDr izfr lfgr lwpukFkZ ,oa vko';d dk;Zokgh gsrq izsf"kr gSA
B36: 3 lacaf/kr O;fDr@dkfeZd A
B37: 4 futh i=koyh @jf{kr i=koyhA
B38: 5 Jheku dks"kkf/kdkjh@midks"kkf/kdkjh JhxaxkuxjA

Sheet PEEO 10Z
A1: jktLFkku ljdkj
B2: dkfeZd ¼[k&1½ foHkkx
B3: fu;rdkyhu osru o`f} izek.k i= ¼dk;kZy;%& ihbZbZvks 10tSM ,oa iz/kkukpk;Z jkmekfo 15tSM] Jhxaxkuxj½
B4: Schedule-1 | C4: Part `B` | E4: Rule No. 5(vi) and (vii) | J4: Pay Matrix of State Government Servants
B5: bl foHkkx dh vkKk | C5: ua-,Q15¼1½,QMh@:Yl@2017 | F5: laa[;k i- | G5: t;iqj] | H5: fnukad | I5: 2017-12-30 | J5: ds vuqlj.k esa
B7: 1 izekf.kr fd;k tkrk gS fd fuEufyf[kr jkT; deZpkjh us [kkuk la[;k 6 esa cryk, x, fu;e ls fu/kkZfjr fu;rdkfyd osruo`f} vftZr dj yh gSa jkT; deZpkjh us [kkuk la[;k 5 dh rkjh[k ls fufnZ"V in ij u;s osrueku 2017 ds fu;ekuqlkj vof/k esa dk;Z fd;k gSA mDr vof/k dh x.kuk nqjkpj.k vkfn ds dkj.k fuyEcu dh vof/k] osru vodk'k] vuqifLFkfr dh vof/k o in dks LFkkukiUu :i ls /kkj.k djus dh fLFkfr esas lHkh izdkj ds vodk'kksa dh vof/k ?kVk dj dh xbZ gSA
A9: Ø-la- | B9: deZpkjh dk uke e; in | D9: ihbZbZvks 10tSM ,oa iz/kkukpk;Z jkmekfo 15tSM ifj{ks= ds fo|ky; dk uke | E9: laLFkk;h ;k LFkkukiUUk | F9: is&eSfVªDl ysoy | H9: orZeku osru | I9: rkjh[k ftllasa orZeku osru izkIr fd;k tk jgk gS | J9: orZeku osru o`f} dh rkjh[k | K9: le lkef;d osru o`f) | L9: 0.03 | M9: Hkkoh osru | N9: nqjkpj.k ds fuyEcu vkSj ,slh vU; vuqifLFkfr ftldh x.kuk o`f} ds fy, ugha gksrh | P9: fcuk osru vkSj LFkkukuUu inkf/kdkjh;kss ds ekeyksa ds vU; lHkh izdkj ds vodk'k
K10: 0.03 | N10: rkjh[k ls | O10: rkjh[k rd | P10: rkjh[k ls | Q10: rkjh[k rd
B11: 1 | E11: 2 | F11: 3 | H11: 4 | I11: 5 | J11: 6 | K11: 7 | L11: 7 | M11: 8 | N11: 9 | O11: 10 | P11: 11 | Q11: 12
A12: 1 | B12: Jherh lhek esgUnhjrk | C12: o0v0 ¼iz/kkuk/;kid½ | D12: jkmizzkfo 12tSM | E12: LFkk;h | F12: PB(2)- (9300-34800) (5400) | G12: Leval-12 | H12: 59500 | I12: 01&07&2018 | J12: 01&07&2019 | K12: =ROUND(L12,-2) -> 1800 | L12: =H12*3/100 -> 1785 | M12: =H12+K12 -> 61300 | N12: =M12-O12 -> 55900 | O12: 5400
A13: 2 | B13: Jh Hkwiflag dqd.kk | C13: v0 ysoy&kk | D13: jkmizzkfo 12tSM | E13: LFkk;h | F13: PB(2)- (9300-34800) (5400) | G13: Leval-12 | H13: 57800 | I13: 01&07&2018 | J13: 01&07&2019 | K13: =ROUND(L13,-2) -> 1700 | L13: 1734 | M13: =H13+K13 -> 59500 | N13: =M13-O13 -> 54100 | O13: 5400
A14: 3 | B14: Jherh ppay fe<k | C14: v0 ysoy&kk | D14: jkmizzkfo 12tSM | E14: LFkk;h | F14: PB(2)- (9300-34800) (5400) | G14: Leval-13 | H14: 65200 | I14: 01&07&2018 | J14: 01&07&2019 | K14: =ROUND(L14,-2) -> 2000 | L14: 1956 | M14: =H14+K14 -> 67200 | N14: =M14-O14 -> 62400 | O14: 4800
A15: 4 | B15: Jherh deys'k HkkfV;k | C15: v0 ysoy&kk | D15: jkmizzkfo 12tSM | E15: LFkk;h | F15: PB(2)- (9300-34800) (5400) | G15: Leval-11 | H15: 43800 | I15: 01&07&2018 | J15: 01&07&2019 | K15: 1300 | L15: 1314 | M15: =H15+K15 -> 45100 | N15: 39700 | O15: 5400
A16: 5 | B16: Jherh nythr dkSj | C16: 'kk-f'k- | D16: jkmizzkfo 12tSM | E16: LFkk;h | F16: PB(2)- (9300-34800) (5400) | G16: Leval-11 | H16: 52300 | I16: 01&07&2018 | J16: 01&07&2019 | K16: 1600 | L16: =H16*3/100 -> 1569 | M16: =H16+K16 -> 53900 | N16: =M16-O16 -> 49100 | O16: 4800
A17: 6 | B17: Jherh f'kYik vuqik.kh | C17: v0 ysoy&kk | D17: jkmizzkfo 12tSM | E17: LFkk;h | F17: PB(2)- (9300-34800) (5400) | G17: Leval-10 | H17: 34800 | I17: 01&10&2018 | J17: 01&07&2019 | K17: 1000 | L17: 1044 | M17: 35800 | N17: 31000 | O17: 4800
A18: 7 | B18: Jh pUnzs'k dqekj | C18: v0 ysoy&kk | D18: jkmizzkfo 10, NksVh | E18: LFkk;h | F18: PB(2)- (9300-34800) (5400) | G18: Leval-11 | H18: 42500 | I18: 01&07&2018 | J18: 01&07&2019 | K18: 1300 | L18: 1275 | M18: 43800 | N18: 39000 | O18: 4800
A19: 8 | B19: Jherh js[kk jkuh | C19: v- ysoy&k | D19: jkizkfo 8, NksVh | E19: LFkk;h | F19: PB(2)- (9300-34800) (5400) | G19: Leval-10 | H19: 38000 | I19: 01&07&2018 | J19: 01&07&2019 | K19: 1100 | L19: 1140 | M19: =H19+K19 -> 39100 | N19: =M19-O19 -> 34300 | O19: 4800
A20: 9 | B20: Jherh vfurk dqDdM+ | C20: v0 ysoy&kk | D20: jkizkfo 8tSM | E20: LFkk;h | F20: PB(2)- (9300-34800) (5400) | G20: Leval-13 | H20: 63300 | I20: 01&07&2018 | J20: 01&07&2019 | K20: 1900 | L20: 1899 | M20: =H20+K20 -> 65200 | N20: =M20-O20 -> 60400 | O20: 4800
A21: 10 | E21: LFkk;h | F21: PB(2)- (9300-34800) (5400) | G21: Leval-12 | H21: 0 | I21: 01&07&2018 | J21: 01&07&2019 | K21: 0 | L21: =H21*3/100 -> 0 | M21: =H21+K21 -> 0 | N21: =M21-O21 -> -5400 | O21: 5400
A22: 11 | E22: LFkk;h | F22: PB(2)- (9300-34800) (5400) | G22: Leval-12 | H22: 0 | I22: 23&12&2018 | J22: 01&07&2019 | K22: 0 | L22: =H22*3/100 -> 0 | M22: 0 | N22: -5400 | O22: 5400
A23: 12 | E23: LFkk;h | F23: PB(2)- (9300-34800) (5400) | G23: Leval-12 | H23: 0 | I23: 01&07&2018 | J23: 01&07&2019 | K23: 0 | L23: =H23*3/100 -> 0 | M23: =H23+K23 -> 0 | N23: =M23-O23 -> -4800 | O23: 4800
A24: 13 | E24: LFkk;h | F24: PB(2)- (9300-34800) (5400) | G24: Leval-12 | H24: 0 | I24: 01&07&2018 | J24: 01&07&2019 | K24: 0 | L24: =H24*3/100 -> 0 | M24: =H24+K24 -> 0 | N24: =M24-O24 -> -4800 | O24: 4800
A25: 14 | E25: LFkk;h | F25: PB(2)- (9300-34800) (5400) | G25: Leval-08 | H25: 0 | I25: 01&07&2018 | J25: 01&07&2019 | K25: 0 | L25: 0 | M25: =H25+K25 -> 0 | N25: =M25-O25 -> -2800 | O25: 2800
A26: 15 | E26: LFkk;h | F26: PB(2)- (9300-34800) (5400) | G26: Leval-05 | H26: 0 | I26: 01&07&2018 | J26: 01&07&2019 | K26: 0 | L26: =H26*3/100 -> 0 | M26: =H26+K26 -> 0 | N26: =M26-O26 -> -1900 | O26: 1900
A27: 16 | E27: LFkk;h | F27: PB(2)- (9300-34800) (5400) | G27: Leval-03 | H27: 0 | I27: 01&07&2018 | J27: 01&07&2019 | K27: 0 | L27: =H27*3/100 -> 0 | M27: =H27+K27 -> 0 | N27: =M27-O27 -> -1900 | O27: 1900
A28: 17 | E28: LFkk;h | F28: PB(2)- (9300-34800) (5400) | G28: Leval-03 | H28: 0 | I28: 01&07&2018 | J28: 01&07&2019 | K28: 0 | L28: =H28*3/100 -> 0 | M28: =H28+K28 -> 0 | N28: =M28-O28 -> -1750 | O28: 1750
B30: izekf.kr fd;k tkrk gS fd jktLFkku lsok fu;e 31ds vuqlkj mi;qZDr vodk'k dh x.kuk ml in ds le;eku esa osru o`f} ds fy, ekU; gksrh gS ftl ij mi;qZDr jkT; deZpkjh vodk'k tkrs le; LFkkukiUu fLFkfr esa dk;Z dj jgk Fkk vkSj og vodk'k ij ugha tkrk rks aLFkkukiUu fLFkfr esa dk;Z djrk jgrkA
B32: Øekad %& ihbZbZvks10tSM ,oa jkmekfo15tSM@159 | J32: fnukad | K32: 2019-07-11
B33: uksV%& 1 dkj.k la[;k ¼1½ ;k ¼2½ izR;sd uke ds vkxs fy[kh tkuh pkfg,A ftl izzdj.k esa dkj.k la[;k ¼2½ Hkkx gksrk gS og Li"Vhdj.k Kkiu layXu djuk pkfg,A
B34: la[;k%& ua-,Q15¼1½,QMh@:Yl@2017 t;iqj fnukad%& 30-10-2017
B35: 2 vuqHkkxkf/kdkjh] dkfeZd ¼x½ foHkkx 'kklu lfpoky; dks vfrfjDr izfr lfgr lwpukFkZ ,oa vko';d dk;Zokgh gsrq izsf"kr gSA
B36: 3 lacaf/kr O;fDr@dkfeZd A
B37: 4 futh i=koyh @jf{kr i=koyhA
B38: 5 Jheku dks"kkf/kdkjh@midks"kkf/kdkjh JhxaxkuxjA
